fUST/lending_fUST_20240804
["ID","MTS","AMOUNT","RATE_DAILY","PERIOD"]
[334048637,1722707447207,-780.34,0.00014509,2]
[334048638,1722707447217,-151.0,0.0001451,2]
[334048639,1722707447227,-282.907031,0.0001451,2]
[334048640,1722707447239,-282.907031,0.0001451,2]
[334048641,1722707447249,-151.0,0.0001451,2]
[334048642,1722707447259,-151.0,0.0001451,2]
[334048643,1722707447269,-151.0,0.0001451,2]
[334048644,1722707447278,-151.0,0.0001451,2]
[334048645,1722707447288,-151.0,0.0001451,2]
[334048646,1722707447301,-780.34,0.00014519,2]
[334048647,1722707447310,-2910.37,0.00014519,2]
[334048648,1722707447319,-2910.37,0.00014519,2]
[334048649,1722707447330,-500.0,0.0001452,2]
[334048650,1722707447339,-151.0,0.0001452,2]
[334048651,1722707447349,-500.0,0.0001452,2]
[334048652,1722707447359,-500.0,0.0001452,2]
[334048653,1722707447369,-500.0,0.0001452,2]
[334048654,1722707447379,-500.0,0.0001452,2]
[334048655,1722707447389,-500.0,0.0001452,2]
[334048656,1722707447398,-151.0,0.0001452,2]
[334048657,1722707447408,-500.0,0.0001452,2]
[334048658,1722707447418,-500.0,0.0001452,2]
[334048659,1722707447427,-500.0,0.0001452,2]
[334048660,1722707447436,-313.79825473,0.0001452,2]
[334048661,1722707447446,-500.0,0.0001452,2]
[334048662,1722707447455,-536.87,0.0001452,2]
[334048663,1722707447465,-460.63067369,0.0001452,2]
[334048664,1722707447474,-500.0,0.0001452,2]
[334048665,1722707447483,-500.0,0.0001452,2]
[334048666,1722707447493,-500.0,0.0001452,2]
[334048667,1722707447503,-500.0,0.0001452,2]
[334048668,1722707447512,-500.0,0.0001452,2]
[334048669,1722707447522,-500.0,0.0001452,2]
[334048670,1722707447531,-524.81,0.0001452,2]
[334048671,1722707447540,-500.0,0.0001452,2]
[334048672,1722707447551,-500.0,0.0001452,2]
[334048673,1722707447560,-573.519406,0.0001452,2]
[334048674,1722707447570,-573.519406,0.0001452,2]
[334048675,1722707447580,-500.0,0.0001452,2]
[334048676,1722707447591,-500.0,0.0001452,2]
[334048677,1722707447600,-733.52,0.0001452,2]
[334048678,1722707447610,-242.904074,0.0001452,2]
[334048679,1722707447619,-500.0,0.0001452,2]
[334048680,1722707447630,-242.904074,0.0001452,2]
[334048681,1722707447640,-500.0,0.0001452,2]
[334048682,1722707447652,-500.0,0.0001452,2]
[334048683,1722707447661,-500.0,0.0001452,2]
[334048684,1722707447670,-500.0,0.0001452,2]
[334048685,1722707447679,-500.0,0.0001452,2]
[334048686,1722707447688,-500.0,0.0001452,2]
[334048687,1722707447697,-1235.24,0.0001452,2]
[334048688,1722707447707,-500.0,0.0001452,2]
[334048689,1722707447716,-500.0,0.0001452,2]
[334048690,1722707447725,-500.0,0.0001452,2]
[334048691,1722707447734,-500.0,0.0001452,2]
[334048692,1722707447743,-500.0,0.0001452,2]
[334048693,1722707447752,-500.0,0.0001452,2]
[334048694,1722707447763,-500.0,0.0001452,2]
[334048695,1722707447772,-500.0,0.0001452,2]
[334048696,1722707447782,-500.0,0.0001452,2]
[334048697,1722707447792,-155.759212,0.0001452,2]
[334048698,1722707447804,-500.0,0.0001452,2]
[334048699,1722707447813,-500.0,0.0001452,2]
[334048700,1722707447823,-155.759212,0.0001452,2]
[334048701,1722707447832,-500.0,0.0001452,2]
[334048702,1722707447842,-505.19,0.0001452,2]
[334048703,1722707447852,-500.0,0.0001452,2]
[334048704,1722707447861,-500.0,0.0001452,2]
[334048705,1722707447871,-599.84,0.0001452,2]
[334048706,1722707447881,-500.0,0.0001452,2]
[334048707,1722707447890,-500.0,0.0001452,2]
[334048708,1722707447900,-744.68,0.0001452,2]
[334048709,1722707447909,-500.0,0.0001452,2]
[334048710,1722707447919,-500.0,0.0001452,2]
[334048711,1722707447928,-500.0,0.0001452,2]
[334048712,1722707447938,-500.0,0.0001452,2]
[334048713,1722707447948,-500.0,0.0001452,2]
[334048714,1722707447961,-500.0,0.0001452,2]
[334048715,1722707447973,-558.39,0.0001452,2]
[334048716,1722707447983,-500.0,0.0001452,2]
[334048717,1722707447992,-500.0,0.0001452,2]
[334048718,1722707448002,-500.0,0.0001452,2]
[334048719,1722707448011,-2328.32,0.0001452,2]
[334048720,1722707448021,-500.0,0.0001452,2]
[334048721,1722707448031,-500.0,0.0001452,2]
[334048722,1722707448042,-500.0,0.0001452,2]
[334048723,1722707448056,-500.0,0.0001452,2]
[334048724,1722707448148,-536.37,0.0001452,2]
[334048725,1722707448160,-2511.29,0.0001452,2]
[334048726,1722707448170,-500.0,0.0001452,2]
[334048727,1722707448180,-779.68,0.0001452,2]
[334048728,1722707448190,-500.0,0.0001452,2]
[334048729,1722707448201,-1067.22,0.0001452,2]
[334048730,1722707448210,-500.0,0.0001452,2]
[334048731,1722707448221,-500.0,0.0001452,2]
[334048732,1722707448230,-1739.4,0.0001452,2]
[334048733,1722707448245,-500.0,0.0001452,2]
[334048734,1722707448255,-500.0,0.0001452,2]
[334048735,1722707448264,-500.0,0.0001452,2]
[334048736,1722707448274,-434.61283012,0.0001452,2]
[334048737,1722707448284,-500.0,0.0001452,2]
[334048738,1722707448294,-500.0,0.0001452,2]
[334048739,1722707448306,-500.0,0.0001452,2]
[334048740,1722707448316,-500.0,0.0001452,2]
[334048741,1722707448326,-500.0,0.0001452,2]
[334048742,1722707448336,-677.29,0.0001452,2]
[334048743,1722707448346,-500.0,0.0001452,2]
[334048744,1722707448356,-1091.50397563,0.0001469,2]
[334048745,1722707448365,-269.63517677,0.0001469,2]
[334048746,1722707448375,-816.16582707,0.0001469,2]
[334048747,1722707448386,-286.58862085,0.0001469,2]
[334048748,1722707448395,-30000.0,0.0001469,2]
[334048749,1722707448405,-151.0,0.0001469,2]
[334048750,1722707448415,-151.259361,0.0001469,2]
[334048751,1722707448424,-151.0,0.0001469,2]
[334048752,1722707448434,-151.0,0.0001469,2]
[334048753,1722707448443,-151.0,0.0001469,2]
[334048754,1722707448453,-151.0,0.0001469,2]
[334048755,1722707448463,-151.0,0.0001469,2]
[334048756,1722707448473,-151.355207,0.0001469,2]
[334048757,1722707448483,-150.112233,0.000147,2]
[334048758,1722707448493,-780.34,0.00014783,2]
[334048759,1722707448503,-2910.37,0.00014783,2]
[334048760,1722707448513,-151.0,0.00014784,2]
[334048761,1722707448523,-151.0,0.00014784,2]
[334048762,1722707448532,-151.0,0.00014793,2]
[334048763,1722707448541,-211.31324,0.00014793,2]
[334048764,1722707448553,-780.34,0.00014793,2]
[334048765,1722707448562,-2910.37,0.00014793,2]
[334048766,1722707448571,-500.0,0.00014794,2]
[334048767,1722707448580,-500.0,0.00014794,2]
[334048768,1722707448590,-151.0,0.00014794,2]
[334048769,1722707448599,-499.57798129,0.00014794,2]
[334048770,1722707448609,-500.0,0.00014794,2]
[334048771,1722707448619,-500.0,0.00014794,2]
[334048772,1722707448629,-500.0,0.00014794,2]
[334048773,1722707448638,-500.0,0.00014794,2]
[334048774,1722707448648,-500.0,0.00014794,2]
[334048775,1722707448658,-500.0,0.00014794,2]
[334048776,1722707448668,-282.907031,0.00014794,2]
[334048777,1722707448678,-282.907031,0.00014794,2]
[334048778,1722707448689,-500.0,0.00014794,2]
[334048779,1722707448699,-151.0,0.00014794,2]
[334048780,1722707448710,-500.0,0.00014794,2]
[334048781,1722707448720,-151.0,0.00014794,2]
[334048782,1722707448730,-536.87,0.00014794,2]
[334048783,1722707448740,-500.0,0.00014794,2]
[334048785,1722707448750,-500.0,0.00014794,2]
[334048786,1722707448760,-500.0,0.00014794,2]
[334048787,1722707448771,-500.0,0.00014794,2]
[334048788,1722707448782,-500.0,0.00014794,2]
[334048789,1722707448792,-500.0,0.00014794,2]
[334048790,1722707448810,-524.81,0.00014794,2]
[334048791,1722707448820,-500.0,0.00014794,2]
[334048792,1722707448831,-500.0,0.00014794,2]
[334048793,1722707448840,-500.0,0.00014794,2]
[334048794,1722707448850,-500.0,0.00014794,2]
[334048795,1722707448859,-733.52,0.00014794,2]
[334048796,1722707448868,-500.0,0.00014794,2]
[334048797,1722707448877,-500.0,0.00014794,2]
[334048798,1722707448887,-500.0,0.00014794,2]
[334048799,1722707448897,-500.0,0.00014794,2]
[334048800,1722707448907,-500.0,0.00014794,2]
[334048801,1722707448916,-500.0,0.00014794,2]
[334048802,1722707448925,-1235.24,0.00014794,2]
[334048803,1722707448935,-500.0,0.00014794,2]
[334048804,1722707448944,-500.0,0.00014794,2]
[334048805,1722707448954,-500.0,0.00014794,2]
[334048806,1722707448963,-500.0,0.00014794,2]
[334048807,1722707448972,-500.0,0.00014794,2]
[334048808,1722707448982,-500.0,0.00014794,2]
[334048809,1722707448991,-500.0,0.00014794,2]
[334048810,1722707449001,-500.0,0.00014794,2]
[334048811,1722707449010,-500.0,0.00014794,2]
[334048812,1722707449021,-500.0,0.00014794,2]
[334048813,1722707449031,-500.0,0.00014794,2]
[334048814,1722707449041,-500.0,0.00014794,2]
[334048815,1722707449055,-151.0,0.00014794,2]
[334048816,1722707449064,-151.0,0.00014794,2]
[334048817,1722707449073,-505.19,0.00014794,2]
[334048818,1722707449082,-500.0,0.00014794,2]
[334048819,1722707449092,-500.0,0.00014794,2]
[334048820,1722707449101,-599.84,0.00014794,2]
[334048821,1722707449110,-500.0,0.00014794,2]
[334048822,1722707449119,-500.0,0.00014794,2]
[334048823,1722707449128,-744.68,0.00014794,2]
[334048824,1722707449139,-500.0,0.00014794,2]
[334048825,1722707449149,-500.0,0.00014794,2]
[334048826,1722707449160,-500.0,0.00014794,2]
[334048827,1722707449169,-500.0,0.00014794,2]
[334048828,1722707449178,-500.0,0.00014794,2]
[334048829,1722707449187,-500.0,0.00014794,2]
[334048830,1722707449197,-558.39,0.00014794,2]
[334048831,1722707449206,-381.80122198,0.00014794,2]
[334048832,1722707449215,-500.0,0.00014794,2]
[334048833,1722707449224,-151.0,0.00014794,2]
[334048834,1722707449234,-151.0,0.00014794,2]
[334048835,1722707449244,-2328.32,0.00014794,2]
[334048836,1722707449253,-500.0,0.00014794,2]
[334048837,1722707449263,-500.0,0.00014794,2]
[334048838,1722707449273,-500.0,0.00014794,2]
[334048839,1722707449282,-500.0,0.00014794,2]
[334048840,1722707449291,-536.37,0.00014794,2]
[334048841,1722707449306,-2511.29,0.00014794,2]
[334048842,1722707449315,-151.0,0.00014794,2]
[334048843,1722707449325,-500.0,0.00014794,2]
[334048844,1722707449335,-779.68,0.00014794,2]
[334048845,1722707449344,-1067.22,0.00014794,2]
[334048846,1722707449355,-500.0,0.00014794,2]
[334048847,1722707449364,-500.0,0.00014794,2]
[334048848,1722707449374,-1739.4,0.00014794,2]
[334048849,1722707449383,-500.0,0.00014794,2]
[334048850,1722707449393,-350.917848,0.00014794,2]
[334048851,1722707449403,-500.0,0.00014794,2]
[334048852,1722707449412,-350.917848,0.00014794,2]
[334048853,1722707449421,-500.0,0.00014794,2]
[334048854,1722707449431,-500.0,0.00014794,2]
[334048855,1722707449440,-500.0,0.00014794,2]
[334048856,1722707449452,-500.0,0.00014794,2]
[334048857,1722707449461,-151.0,0.00014794,2]
[334048858,1722707449471,-584.92854329,0.00014794,2]
[334048859,1722707449481,-500.0,0.00014794,2]
[334048860,1722707449490,-677.29,0.00014794,2]
[334048861,1722707449500,-500.0,0.00014794,2]
[334048862,1722707449509,-2603.13332576,0.00014867,2]
[334048863,1722707449518,-2848.0272935,0.00015,2]
[334048864,1722707449528,-459.65038958,0.00015,4]
[334048865,1722707449537,-1000.0,0.00015,15]
[334048866,1722707449550,-151.0,0.00015,2]
[334048867,1722707449560,-151.0,0.00015,2]
[334048868,1722707449569,-151.0,0.00015,2]
[334048869,1722707449579,-780.34,0.00015057,2]
[334048870,1722707449590,-151.0,0.00015058,2]
[334048871,1722707449600,-151.0,0.00015058,2]
[334048872,1722707449611,-780.34,0.00015067,2]
[334048873,1722707449621,-780.34,0.00015067,2]
[334048874,1722707449631,-780.34,0.00015067,2]
[334048875,1722707449642,-780.34,0.00015067,2]
[334048876,1722707449651,-780.51,0.00015067,2]
[334048877,1722707449662,-2910.37,0.00015067,2]
[334048878,1722707449672,-18481.70997902,0.00015068,5]
[334048879,1722707449682,-500.0,0.00015068,2]
[334048880,1722707449692,-500.0,0.00015068,2]
[334048881,1722707449704,-500.0,0.00015068,2]
[334048882,1722707449713,-500.0,0.00015068,2]
[334048883,1722707449723,-500.0,0.00015068,2]
[334048884,1722707449732,-500.0,0.00015068,2]
[334048885,1722707449741,-500.0,0.00015068,2]
[334048886,1722707449750,-500.0,0.00015068,2]
[334048887,1722707449760,-500.0,0.00015068,2]
[334048888,1722707449769,-536.87,0.00015068,2]
[334048889,1722707449779,-500.0,0.00015068,2]
[334048890,1722707449788,-500.0,0.00015068,2]
[334048891,1722707449797,-500.0,0.00015068,2]
[334048892,1722707449811,-500.0,0.00015068,2]
[334048893,1722707449823,-500.0,0.00015068,2]
[334048894,1722707449832,-500.0,0.00015068,2]
[334048895,1722707449850,-524.81,0.00015068,2]
[334048896,1722707449861,-500.0,0.00015068,2]
[334048897,1722707449870,-500.0,0.00015068,2]
[334048898,1722707449880,-573.519406,0.00015068,2]
[334048899,1722707449889,-573.519406,0.00015068,2]
[334048900,1722707449899,-500.0,0.00015068,2]
[334048901,1722707449909,-500.0,0.00015068,2]
[334048902,1722707449918,-733.52,0.00015068,2]
[334048903,1722707449927,-242.904074,0.00015068,2]
[334048904,1722707449937,-642.41,0.00015068,2]
[334048905,1722707449947,-242.904074,0.00015068,2]
[334048906,1722707449958,-500.0,0.00015068,2]
[334048907,1722707449969,-500.0,0.00015068,2]
[334048908,1722707449979,-500.0,0.00015068,2]
[334048909,1722707449989,-500.0,0.00015068,2]
[334048910,1722707449998,-709.546533,0.00015068,2]
[334048911,1722707450007,-500.0,0.00015068,2]
[334048912,1722707450016,-709.546533,0.00015068,2]
[334048913,1722707450026,-1235.24,0.00015068,2]
[334048914,1722707450035,-500.0,0.00015068,2]
[334048915,1722707450044,-500.0,0.00015068,2]
[334048916,1722707450062,-500.0,0.00015068,2]
[334048917,1722707450178,-500.0,0.00015068,2]
[334048918,1722707450188,-500.0,0.00015068,2]
[334048919,1722707450198,-500.0,0.00015068,2]
[334048920,1722707450209,-500.0,0.00015068,2]
[334048921,1722707450218,-500.0,0.00015068,2]
[334048922,1722707450228,-500.0,0.00015068,2]
[334048923,1722707450237,-155.759212,0.00015068,2]
[334048924,1722707450247,-500.0,0.00015068,2]
[334048925,1722707450256,-500.0,0.00015068,2]
[334048926,1722707450266,-155.759212,0.00015068,2]
[334048927,1722707450275,-505.19,0.00015068,2]
[334048928,1722707450287,-500.0,0.00015068,2]
[334048929,1722707450300,-500.0,0.00015068,2]
[334048930,1722707450309,-599.84,0.00015068,2]
[334048931,1722707450319,-500.0,0.00015068,2]
[334048932,1722707450328,-744.68,0.00015068,2]
[334048933,1722707450338,-500.0,0.00015068,2]
[334048934,1722707450347,-500.0,0.00015068,2]
[334048935,1722707450356,-500.0,0.00015068,2]
[334048936,1722707450365,-500.0,0.00015068,2]
[334048937,1722707450375,-500.0,0.00015068,2]
[334048938,1722707450384,-558.39,0.00015068,2]
[334048939,1722707450393,-500.0,0.00015068,2]
[334048940,1722707450403,-2328.32,0.00015068,2]
[334048941,1722707450412,-500.0,0.00015068,2]
[334048942,1722707450421,-500.0,0.00015068,2]
[334048943,1722707450430,-500.0,0.00015068,2]
[334048944,1722707450441,-536.37,0.00015068,2]
[334048945,1722707450450,-2511.29,0.00015068,2]
[334048946,1722707450459,-292.4534122,0.00015068,2]
[334048947,1722707450469,-779.68,0.00015068,2]
[334048948,1722707450478,-1067.22,0.00015068,2]
[334048949,1722707450488,-500.0,0.00015068,2]
[334048950,1722707450497,-500.0,0.00015068,2]
[334048951,1722707450506,-1739.4,0.00015068,2]
[334048952,1722707450516,-500.0,0.00015068,2]
[334048953,1722707450527,-500.0,0.00015068,2]
[334048954,1722707450536,-500.0,0.00015068,2]
[334048955,1722707450545,-500.0,0.00015068,2]
[334048956,1722707450558,-500.0,0.00015068,2]
[334048957,1722707450568,-677.29,0.00015068,2]
[334048958,1722707450577,-500.0,0.00015068,2]
[334048959,1722707450586,-2910.37,0.00015331,2]
[334048960,1722707450595,-2910.37,0.00015331,2]
[334048961,1722707450604,-2910.37,0.00015331,2]
[334048962,1722707450614,-2910.37,0.00015331,2]
[334048963,1722707450623,-2910.37070723,0.00015331,2]
[334048964,1722707450632,-151.0,0.00015332,2]
[334048965,1722707450642,-151.0,0.00015332,2]
[334048966,1722707450651,-151.0,0.00015332,2]
[334048967,1722707450661,-151.0,0.00015341,2]
[334048968,1722707450673,-151.0,0.00015341,2]
[334048969,1722707450684,-151.0,0.00015341,2]
[334048970,1722707450694,-500.0,0.00015342,2]
[334048971,1722707450703,-151.0,0.00015342,2]
[334048972,1722707450713,-151.861099,0.00015342,2]
[334048973,1722707450722,-151.0,0.00015342,2]
[334048974,1722707450732,-500.0,0.00015342,2]
[334048975,1722707450742,-500.0,0.00015342,2]
[334048976,1722707450752,-500.0,0.00015342,2]
[334048977,1722707450761,-541.8,0.00015342,2]
[334048978,1722707450771,-500.0,0.00015342,2]
[334048979,1722707450780,-500.0,0.00015342,2]
[334048980,1722707450790,-536.87,0.00015342,2]
[334048981,1722707450801,-500.0,0.00015342,2]
[334048982,1722707450810,-500.0,0.00015342,2]
[334048983,1722707450819,-500.0,0.00015342,2]
[334048984,1722707450827,-500.0,0.00015342,2]
[334048985,1722707450836,-500.0,0.00015342,2]
[334048986,1722707450845,-524.81,0.00015342,2]
[334048987,1722707450855,-500.0,0.00015342,2]
[334048988,1722707450865,-500.0,0.00015342,2]
[334048989,1722707450874,-500.0,0.00015342,2]
[334048990,1722707450883,-500.0,0.00015342,2]
[334048991,1722707450892,-733.52,0.00015342,2]
[334048992,1722707450902,-500.0,0.00015342,2]
[334048993,1722707450911,-500.0,0.00015342,2]
[334048994,1722707450920,-500.0,0.00015342,2]
[334048995,1722707450929,-500.0,0.00015342,2]
[334048996,1722707450939,-1235.24,0.00015342,2]
[334048997,1722707450948,-503.3,0.00015342,2]
[334048998,1722707450957,-500.0,0.00015342,2]
[334048999,1722707450967,-500.0,0.00015342,2]
[334049000,1722707450976,-500.0,0.00015342,2]
[334049001,1722707450985,-500.0,0.00015342,2]
[334049002,1722707450994,-500.0,0.00015342,2]
[334049003,1722707451004,-500.0,0.00015342,2]
[334049004,1722707451013,-500.0,0.00015342,2]
[334049005,1722707451023,-500.0,0.00015342,2]
[334049006,1722707451032,-505.19,0.00015342,2]
[334049007,1722707451041,-500.0,0.00015342,2]
[334049008,1722707451052,-500.0,0.00015342,2]
[334049009,1722707451062,-599.84,0.00015342,2]
[334049010,1722707451071,-500.0,0.00015342,2]
[334049011,1722707451080,-744.68,0.00015342,2]
[334049012,1722707451089,-500.0,0.00015342,2]
[334049013,1722707451098,-500.0,0.00015342,2]
[334049014,1722707451108,-408.31613764,0.00015342,2]
[334049015,1722707451117,-500.0,0.00015342,2]
[334049016,1722707451127,-558.39,0.00015342,2]
[334049017,1722707451137,-500.0,0.00015342,2]
[334049018,1722707451146,-2328.32,0.00015342,2]
[334049019,1722707451161,-500.0,0.00015342,2]
[334049020,1722707451170,-500.0,0.00015342,2]
[334049021,1722707451178,-500.0,0.00015342,2]
[334049022,1722707451187,-536.37,0.00015342,2]
[334049023,1722707451196,-2511.29,0.00015342,2]
[334049024,1722707451206,-779.68,0.00015342,2]
[334049025,1722707451215,-1067.22,0.00015342,2]
[334049026,1722707451224,-500.0,0.00015342,2]
[334049027,1722707451234,-1739.4,0.00015342,2]
[334049028,1722707451245,-500.0,0.00015342,2]
[334049029,1722707451254,-500.0,0.00015342,2]
[334049030,1722707451263,-500.0,0.00015342,2]
[334049031,1722707451272,-500.0,0.00015342,2]
[334049032,1722707451283,-500.0,0.00015342,2]
[334049033,1722707451292,-677.29,0.00015342,2]
[334049034,1722707451309,-2433.2328169,0.000154,2]
[334049035,1722707451318,-500.0,0.00015616,2]
[334049036,1722707451328,-500.0,0.00015616,2]
[334049037,1722707451337,-500.0,0.00015616,2]
[334049038,1722707451346,-500.0,0.00015616,2]
[334049039,1722707451355,-282.907031,0.00015616,2]
[334049040,1722707451364,-282.907031,0.00015616,2]
[334049041,1722707451374,-500.0,0.00015616,2]
[334049042,1722707451383,-500.0,0.00015616,2]
[334049043,1722707451393,-151.0,0.00015616,2]
[334049044,1722707451402,-536.87,0.00015616,2]
[334049045,1722707451411,-500.0,0.00015616,2]
[334049046,1722707451421,-500.0,0.00015616,2]
[334049047,1722707451431,-151.0,0.00015616,2]
[334049048,1722707451440,-500.0,0.00015616,2]
[334049049,1722707451449,-500.0,0.00015616,2]
[334049050,1722707451459,-500.0,0.00015616,2]
[334049051,1722707451468,-524.81,0.00015616,2]
[334049052,1722707451477,-151.0,0.00015616,2]
[334049053,1722707451486,-500.0,0.00015616,2]
[334049054,1722707451495,-500.0,0.00015616,2]
[334049055,1722707451504,-500.0,0.00015616,2]
[334049056,1722707451514,-500.0,0.00015616,2]
[334049057,1722707451523,-733.52,0.00015616,2]
[334049058,1722707451533,-500.0,0.00015616,2]
[334049059,1722707451542,-500.0,0.00015616,2]
[334049060,1722707451555,-500.0,0.00015616,2]
[334049061,1722707451564,-500.0,0.00015616,2]
[334049062,1722707451573,-1235.24,0.00015616,2]
[334049063,1722707451583,-500.0,0.00015616,2]
[334049064,1722707451591,-500.0,0.00015616,2]
[334049065,1722707451600,-500.0,0.00015616,2]
[334049066,1722707451609,-500.0,0.00015616,2]
[334049067,1722707451618,-500.0,0.00015616,2]
[334049068,1722707451627,-500.0,0.00015616,2]
[334049069,1722707451637,-500.0,0.00015616,2]
[334049070,1722707451646,-500.0,0.00015616,2]
[334049071,1722707451655,-151.0,0.00015616,2]
[334049072,1722707451664,-151.0,0.00015616,2]
[334049073,1722707451673,-505.19,0.00015616,2]
[334049074,1722707451683,-500.0,0.00015616,2]
[334049075,1722707451694,-599.84,0.00015616,2]
[334049076,1722707451705,-500.0,0.00015616,2]
[334049077,1722707451714,-744.68,0.00015616,2]
[334049078,1722707451723,-500.0,0.00015616,2]
[334049079,1722707451732,-500.0,0.00015616,2]
[334049080,1722707451742,-500.0,0.00015616,2]
[334049081,1722707451752,-558.39,0.00015616,2]
[334049082,1722707451763,-500.0,0.00015616,2]
[334049083,1722707451774,-2328.32,0.00015616,2]
[334049084,1722707451785,-500.0,0.00015616,2]
[334049085,1722707451795,-500.0,0.00015616,2]
[334049086,1722707451807,-500.0,0.00015616,2]
[334049087,1722707451817,-536.37,0.00015616,2]
[334049088,1722707451826,-2511.29,0.00015616,2]
[334049089,1722707451835,-151.0,0.00015616,2]
[334049090,1722707451846,-779.68,0.00015616,2]
[334049091,1722707451855,-1067.22,0.00015616,2]
[334049092,1722707451866,-500.0,0.00015616,2]
[334049093,1722707451876,-1739.4,0.00015616,2]
[334049094,1722707451957,-500.0,0.00015616,2]
[334049095,1722707451967,-350.917848,0.00015616,2]
[334049096,1722707451978,-500.0,0.00015616,2]
[334049097,1722707451988,-350.917848,0.00015616,2]
[334049098,1722707452011,-500.0,0.00015616,2]
[334049099,1722707452022,-500.0,0.00015616,2]
[334049100,1722707452035,-151.0,0.00015616,2]
[334049101,1722707452046,-500.0,0.00015616,2]
[334049102,1722707452059,-677.29,0.00015616,2]
[334049103,1722707452070,-151.0,0.00015697,2]
[334049104,1722707452081,-151.0,0.00015697,2]
[334049105,1722707452093,-29437.07869208,0.00015707,2]
[334049106,1722707452104,-1794.3605686,0.00015707,2]
[334049107,1722707452114,-1500.0,0.00015707,2]
[334049108,1722707452124,-1438.09478019,0.00015707,2]
[334049109,1722707452134,-7773.90428076,0.00015707,2]
[334049110,1722707452144,-3087.24984166,0.00015707,2]
[334049111,1722707452157,-9641.35663477,0.00015707,2]
[334049112,1722707452171,-2654.00935003,0.00015707,2]
[334049113,1722707452184,-2138.84815515,0.00015707,2]
[334049114,1722707452195,-2277.87309117,0.00015707,3]
[334049115,1722707452206,-1714.84159531,0.00015707,2]
[334049116,1722707452217,-2124.22844033,0.00015707,2]
[334049117,1722707452227,-2162.2903099,0.00015707,2]
[334049118,1722707452239,-151.0,0.00015707,2]
[334049119,1722707452252,-151.0,0.00015707,2]
[334049120,1722707452262,-151.0,0.00015707,2]
[334049121,1722707452272,-151.0,0.00015707,2]
[334049122,1722707452283,-151.0,0.00015707,2]
[334049123,1722707452294,-151.0,0.00015707,2]
[334049124,1722707452306,-151.0,0.00015707,2]
[334049125,1722707452315,-151.0,0.00015707,2]
[334049126,1722707452324,-151.0,0.00015707,2]
[334049127,1722707452334,-151.0,0.00015707,2]
[334049128,1722707452345,-573.519406,0.00015707,2]
[334049129,1722707452356,-573.519406,0.00015707,2]
[334049130,1722707452366,-242.904074,0.00015707,2]
[334049131,1722707452377,-242.904074,0.00015707,2]
[334049132,1722707452387,-709.546533,0.00015707,2]
[334049133,1722707452397,-709.546533,0.00015707,2]
[334049134,1722707452408,-155.759212,0.00015707,2]
[334049135,1722707452418,-155.759212,0.00015707,2]
[334049136,1722707452427,-151.684119,0.00015707,2]
[334049137,1722707452439,-151.0,0.00015707,2]